Workbook

Sheet паспорт
A1: ПАТ "УКРТРАНСГАЗ" | G1: ПАСПОРТ ФІЗИКО-ХІМІЧНИХ ПОКАЗНИКІВ ПРИРОДНОГО ГАЗУ № 173
A2: Філія "УМГ "КИЇВТРАНСГАЗ" | G2: переданого Сумським ЛВУМГ та прийнятого ПАТ "Сумигаз"
A3: Сумського ЛВУМГ | G3: Маршрут № 173
A4: Вимірювальна хіміко-аналітична лабораторія
A5: Свідоцтво № РУ-1071/12 чинне до 10 травня 2017 р. | K5: по газопроводу "Єлець - Кременчук - Кривий Ріг" | V5: за період з | X5: 2017-03-01 | Z5: по | AA5: 2017-03-31
A7: Число місяця | B7: Компонентний склад, % мол. | N7: Фізико-хімічні показники газу обчислені на основі компонентного складу, 101,325 кПа | X7: Температура точки роси за вологою (Р = 3.92 МПа), °С | Y7: Температура точки роси за вуглеводнями, °С | Z7: Вміст сірководню, г/м3 | AA7: Вміст меркаптанової сірки, г/м3 | AB7: Вміст механічних домішок, г/м3
N8: Густина абсолютна, кг/м3,при 20 ºС, | O8: Температура вимірювання/згоряння при 20/25°С
B9: метан, С1 | C9: етан, С2 | D9: пропан, С3 | E9: ізо-бутан, і-С4 | F9: н-бутан, н-С4 | G9: нео-пентан, нео-С5 | H9: ізо-пентан, і-С5 | I9: н-пентан, н-С5 | J9: гексани та вищі, С6+ | K9: кисень, О2 | L9: азот, N2 | M9: діоксид вуглецю, CО2 | O9: Теплота згоряння нижча | R9: Теплота згоряння вища | U9: Число Воббе вище
O10: ккал/м3 | P10: МДж/м3 | Q10: кВт⋅год/м3 | R10: ккал/м3 | S10: МДж/м3 | T10: кВт⋅год/м3 | U10: ккал/м3 | V10: МДж/м3 | W10: кВт⋅год/м3
A11: 1 | O11: =P11*238.8459 -> 8192.41437 | P11: 34.3 | Q11: =P11/3.6 -> 9.527777778 | R11: =S11*238.8459 -> 9078.532659 | S11: 38.01 | T11: 10.54444444 | X11: -21.8 | AC11: =SUM(B11:M11)+$K$42+$N$42 -> 0
A12: 2 | O12: =P12*238.8459 -> 8192.41437 | P12: 34.3 | Q12: =P12/3.6 -> 9.527777778 | R12: =S12*238.8459 -> 9078.532659 | S12: 38.01 | T12: =S12/3.6 -> 10.55833333 | X12: -22.6 | AC12: 0
A13: 3 | O13: 8192.41437 | P13: 34.3 | Q13: =P13/3.6 -> 9.527777778 | R13: 9078.532659 | S13: 38.01 | T13: =S13/3.6 -> 10.55833333 | X13: -22.3 | AC13: 0 | AD13: =IF(AC13=100,"ОК"," ") -> 
A14: 4 | O14: 8192.41437 | P14: 34.3 | Q14: 9.527777778 | R14: 9078.532659 | S14: 38.01 | T14: 10.55833333 | AC14: 0 | AD14: =IF(AC14=100,"ОК"," ") -> 
A15: 5 | O15: 8192.41437 | P15: 34.3 | Q15: 9.527777778 | R15: 9078.532659 | S15: 38.01 | T15: 10.55833333 | AC15: 0
A16: 6 | B16: 95.746 | C16: 2.409 | D16: 0.758 | E16: 0.113 | F16: 0.111 | G16: 0.0016 | H16: 0.0201 | I16: 0.0145 | J16: 0.01 | K16: 0.0048 | L16: 0.629 | M16: 0.183 | N16: 0.7016 | O16: 8216.29896 | P16: 34.4 | Q16: 9.555555556 | R16: 9107.194167 | S16: 38.13 | T16: 10.59166667 | U16: =V16*238.8459 -> 11932.74116 | V16: 49.96 | W16: =V16/3.6 -> 13.87777778 | X16: -22.1 | Z16: 0 | AA16: ≤0,01 | AB16: 0 | AC16: 100 | AD16: ОК
A17: 7 | O17: 8216.29896 | P17: 34.4 | Q17: 9.555555556 | R17: 9107.194167 | S17: 38.13 | T17: 10.59166667 | X17: -23.3 | AC17: 0
A18: 8 | O18: 8216.29896 | P18: 34.4 | Q18: 9.555555556 | R18: 9107.194167 | S18: 38.13 | T18: 10.59166667 | AC18: 0
A19: 9 | O19: 8216.29896 | P19: 34.4 | Q19: 9.555555556 | R19: 9107.194167 | S19: 38.13 | T19: 10.59166667 | X19: -23.5 | AC19: 0
A20: 10 | O20: 8216.29896 | P20: 34.4 | Q20: 9.555555556 | R20: 9107.194167 | S20: 38.13 | T20: 10.59166667 | X20: -23.9 | AC20: 0
A21: 11 | O21: 8216.29896 | P21: 34.4 | Q21: 9.555555556 | R21: 9107.194167 | S21: 38.13 | T21: 10.59166667 | AC21: 0
A22: 12 | O22: 8216.29896 | P22: 34.4 | Q22: 9.555555556 | R22: 9107.194167 | S22: 38.13 | T22: 10.59166667 | AC22: 0
A23: 13 | B23: 95.6128 | C23: 2.49 | D23: 0.796 | E23: 0.121 | F23: 0.12 | G23: 0.0015 | H23: 0.0222 | I23: 0.0159 | J23: 0.0121 | K23: 0.0045 | L23: 0.617 | M23: 0.187 | N23: 0.703 | O23: 8233.018173 | P23: 34.47 | Q23: 9.575 | R23: 9123.91338 | S23: 38.2 | T23: 10.61111111 | U23: =V23*238.8459 -> 11942.295 | V23: 50 | W23: =V23/3.6 -> 13.88888889 | X23: -23.7 | AC23: 100 | AD23: ОК
A24: 14 | O24: 8233.018173 | P24: 34.47 | Q24: 9.575 | R24: 9123.91338 | S24: 38.2 | T24: 10.61111111 | X24: -23.6 | AC24: 0
A25: 15 | O25: 8233.018173 | P25: 34.47 | Q25: 9.575 | R25: 9123.91338 | S25: 38.2 | T25: 10.61111111 | X25: -23.9 | AC25: 0
A26: 16 | O26: 8233.018173 | P26: 34.47 | Q26: 9.575 | R26: 9123.91338 | S26: 38.2 | T26: 10.61111111 | X26: -23.2 | AC26: 0
A27: 17 | O27: 8233.018173 | P27: 34.47 | Q27: 9.575 | R27: 9123.91338 | S27: 38.2 | T27: 10.61111111 | X27: -23 | AC27: 0
A28: 18 | O28: 8233.018173 | P28: 34.47 | Q28: 9.575 | R28: 9123.91338 | S28: 38.2 | T28: 10.61111111 | AC28: 0
A29: 19 | O29: 8233.018173 | P29: 34.47 | Q29: 9.575 | R29: 9123.91338 | S29: 38.2 | T29: 10.61111111 | AC29: 0
A30: 20 | B30: 95.6269 | C30: 2.483 | D30: 0.791 | E30: 0.121 | F30: 0.118 | G30: 0.0018 | H30: 0.0216 | I30: 0.016 | J30: 0.0114 | K30: 0.0043 | L30: 0.62 | M30: 0.185 | N30: 0.7028 | O30: 8230.629714 | P30: 34.46 | Q30: 9.572222222 | R30: 9121.524921 | S30: 38.19 | T30: 10.60833333 | U30: =V30*238.8459 -> 11939.90654 | V30: 49.99 | W30: =V30/3.6 -> 13.88611111 | X30: -24.2 | AC30: 100 | AD30: =IF(AC30=100,"ОК"," ") -> ОК
A31: 21 | O31: 8230.629714 | P31: 34.46 | Q31: 9.572222222 | R31: 9121.524921 | S31: 38.19 | T31: 10.60833333 | X31: -23.9 | AC31: 0
A32: 22 | O32: 8230.629714 | P32: 34.46 | Q32: 9.572222222 | R32: 9121.524921 | S32: 38.19 | T32: 10.60833333 | X32: -23.1 | AC32: 0
A33: 23 | O33: 8230.629714 | P33: 34.46 | Q33: 9.572222222 | R33: 9121.524921 | S33: 38.19 | T33: 10.60833333 | X33: -23.4 | AC33: 0 | AD33: =IF(AC33=100,"ОК"," ") -> 
A34: 24 | O34: 8230.629714 | P34: 34.46 | Q34: 9.572222222 | R34: 9121.524921 | S34: 38.19 | T34: 10.60833333 | X34: -23.9 | AC34: 0
A35: 25 | O35: 8230.629714 | P35: 34.46 | Q35: 9.572222222 | R35: 9121.524921 | S35: 38.19 | T35: 10.60833333 | AC35: 0
A36: 26 | O36: 8230.629714 | P36: 34.46 | Q36: 9.572222222 | R36: 9121.524921 | S36: 38.19 | T36: 10.60833333 | AC36: 0
A37: 27 | B37: 95.4101 | C37: 2.627 | D37: 0.843 | E37: 0.129 | F37: 0.128 | G37: 0.0015 | H37: 0.0235 | I37: 0.0169 | J37: 0.0127 | K37: 0.0043 | L37: 0.608 | M37: 0.196 | N37: 0.7047 | O37: 8249.737386 | P37: 34.54 | Q37: 9.594444444 | R37: 9143.021052 | S37: 38.28 | T37: 10.63333333 | U37: =V37*238.8459 -> 11951.84884 | V37: 50.04 | W37: =V37/3.6 -> 13.9 | X37: -23.1 | AC37: 100 | AD37: ОК
A38: 28 | O38: 8249.737386 | P38: 34.54 | Q38: 9.594444444 | R38: 9143.021052 | S38: 38.28 | T38: 10.63333333 | X38: -23.7 | AC38: 0
A39: 29 | O39: 8249.737386 | P39: 34.54 | Q39: 9.594444444 | R39: 9143.021052 | S39: 38.28 | T39: 10.63333333 | X39: -23.2 | AC39: 0
A40: 30 | O40: 8249.737386 | P40: 34.54 | Q40: 9.594444444 | R40: 9143.021052 | S40: 38.28 | T40: 10.63333333 | X40: -23.7 | AC40: 0
A41: 31 | O41: 8249.737386 | P41: 34.54 | Q41: 9.594444444 | R41: 9143.021052 | S41: 38.28 | T41: 10.63333333 | X41: -23.8 | AC41: 0
A42: Рівень одоризації відповідає чинним нормативним документам | O42: 8224.771169 | P42: 34.43547145 | Q42: 9.565408735 | R42: 9115.24007 | S42: 38.16368659 | T42: 10.60052382
H43: Середньозважене значення теплоти згоряння:
B46: Головний інженер Сумського ЛВУМГ Соловйов О.Б. 03.04.2017
C47: Керівник підрозділу підприємства, якому підпорядкована лабораторія | O47: прізвище | R47: підпис | V47: дата
B48: Завідувач ВХАЛ Журавльова В.В. 03.04.2017
C49: Лабораторія, де здійснювалось вимірювання газу | O49: прізвище | R49: підпис | V49: дата
B50: Начальник служби ГВ та М Соловйов А.І. 03.04.2017
C51: Метрологічна служба, яка вимірює обсяги газу | O51: прізвище | R51: підпис | V51: дата

Sheet додаток
A2: Додаток до Паспорту фізико-хімічних показників природного газу №173
A4: Область | B4: ГРС, прямий споживач | C4: Cередньозважене значення вищої теплоти згоряння
C5: МДж/м³ | D5: ккал/м³ | E5: кВт*год./м³
A6: Сумська область | B6: ГРС Терешківка | C6: 38.16368659 | D6: 9115.24007 | E6: 10.60102405
A7: Середньозважене значення вищої теплоти згоряння по маршруту № 173 | C7: 38.16368659 | D7: 9115.24007 | E7: 10.60102405
A11: Головний інженер Сумського ЛВУМГ Соловйов О.Б. | F11: 2017-04-03
A12: Підрозділу підприємства, якому підпорядкована лабораторія | D12: прізвище | E12: підпис | F12: дата
A13: Завідувач ВХАЛ Журавльова В.В. | F13: 2017-04-03
A14: Лабораторія, де здійснювалось вимірювання газу | D14: прізвище | E14: підпис | F14: дата
A15: Начальник служби МтаГВ Соловйов А.І. | F15: 2017-04-03
A16: Підрозділу, відповідального за облік газу за маршрутом | D16: прізвище | E16: підпис | F16: дата

Sheet variablesList (hidden)
A1: 3 | B1: x:\gaysin | C1: 10, 11, 24, 25, 127, 128, 132, 180, 207, 215 | D1: x:\
B2: x:\Illinci
B3: x:\Talne

Sheet Лист1
A1: Данные по объекту Счетчик-ТЕРЕШКОВКА (осн.) за 3/17.
A2: День | B2: V, м3 | C2: Vру, м3 | D2: Pабс, кгс/см2 | E2: T, °C | F2: ABC | H2: =SUM(B3:B33) -> 130675.42
A3: 1 | B3: 4706.45 | C3: 1488 | D3: 3.07 | E3: 3.3
A4: 2 | B4: 4658.27 | C4: 1473 | D4: 3.06 | E4: 2.99
A5: 3 | B5: 4374.01 | C5: 1372 | D5: 3.08 | E5: 1.85 | F5: A
A6: 4 | B6: 4313.25 | C6: 1356 | D6: 3.07 | E6: 2.28
A7: 5 | B7: 4386.29 | C7: 1383 | D7: 3.07 | E7: 2.91
A8: 6 | B8: 4331.14 | C8: 1366 | D8: 3.07 | E8: 2.73 | F8: B
A9: 7 | B9: 3939.74 | C9: 1248 | D9: 3,06* | E9: 2,79* | F9: A C
A10: 8 | B10: 3677.16 | C10: 1152 | D10: 3.08 | E10: 1.91 | F10: A
A11: 9 | B11: 3769.2 | C11: 1180 | D11: 3.08 | E11: 1.71 | F11: A
A12: 10 | B12: 3686.73 | C12: 1166 | D12: 3.06 | E12: 2.33 | F12: A
A13: 11 | B13: 3797.69 | C13: 1199 | D13: 3.06 | E13: 2.24 | F13: A
A14: 12 | B14: 4212.96 | C14: 1335 | D14: 3.05 | E14: 2.12
A15: 13 | B15: 4675.01 | C15: 1477 | D15: 3.05 | E15: 1.83 | F15: B
A16: 14 | B16: 4207.04 | C16: 1334 | D16: 3.05 | E16: 2.5
A17: 15 | B17: 3860.46 | C17: 1222 | D17: 3.06 | E17: 2.77 | F17: A
A18: 16 | B18: 4204.13 | C18: 1331 | D18: 3.05 | E18: 1.89
A19: 17 | B19: 4374.17 | C19: 1366 | D19: 3.07 | E19: -0.26
A20: 18 | B20: 4507.8 | C20: 1432 | D20: 3.04 | E20: 2.3 | F20: A
A21: 19 | B21: 4721.12 | C21: 1508 | D21: 3.02 | E21: 1.8
A22: 20 | B22: 4624.25 | C22: 1472 | D22: 3.03 | E22: 1.46 | F22: B
A23: 21 | B23: 4119.9 | C23: 1305 | D23: 3.05 | E23: 2.66 | F23: A
A24: 22 | B24: 3887.67 | C24: 1236 | D24: 3.05 | E24: 3.48
A25: 23 | B25: 3927.65 | C25: 1248 | D25: 3.05 | E25: 2.86
A26: 24 | B26: 4080.05 | C26: 1298 | D26: 3.06 | E26: 3.96
A27: 25 | B27: 3875.97 | C27: 1225 | D27: 3.06 | E27: 2.71 | F27: B
A28: 26 | B28: 4204.51 | C28: 1326 | D28: 3.06 | E28: 2.03
A29: 27 | B29: 4562.84 | C29: 1452 | D29: 3.05 | E29: 3.51 | F29: B
A30: 28 | B30: 4140.21 | C30: 1312 | D30: 3.06 | E30: 2.94
A31: 29 | B31: 3930.11 | C31: 1254 | D31: 3.05 | E31: 4.66
A32: 30 | B32: 4351.63 | C32: 1372 | D32: 3.06 | E32: 2.04
A33: 31 | B33: 4568.01 | C33: 1447 | D33: 3.06 | E33: 3.62 | F33: A
A34: Итого | B34: 130675,42* | C34: 41335 | D34: 3,06* | E34: 2,51* | F34: ABC
